[Event "Titled Tuesday Blitz April 4 Late 2023"]
[White "Bilych, Olexiy"]
[Black "Martin Barcelo, Carles"]
[WhiteFideId "14156504"]
[BlackFideId "24561444"]
[WhiteElo "2320"]
[BlackElo "2089"]
[Result "1-0"]
[Round "01"]
[TimeControl "180+2"]
[Date "2023.04.04"]
[WhiteClock "0:01:24"]
[BlackClock "0:00:22"]

1. d4 {[%clk 0:03:00]}  Nf6 {[%clk 0:02:58]} 2. c4 {[%clk 0:03:00]}  g6 {[%clk 0:02:52]} 3. Nc3 {[%clk 0:03:00]}  Bg7 {[%clk 0:02:52]} 4. e4 {[%clk 0:02:59]}  d6 {[%clk 0:02:53]} 5. Nge2 {[%clk 0:02:59]}  O-O {[%clk 0:02:51]} 6. Ng3 {[%clk 0:02:59]}  c5 {[%clk 0:02:50]} 7. d5 {[%clk 0:02:59]}  e6 {[%clk 0:02:51]} 8. Be2 {[%clk 0:02:59]}  exd5 {[%clk 0:02:51]} 9. cxd5 {[%clk 0:03:00]}  Re8 {[%clk 0:02:49]} 10. O-O {[%clk 0:02:55]}  Na6 {[%clk 0:02:47]} 11. Bg5 {[%clk 0:02:40]}  h6 {[%clk 0:02:45]} 12. Bf4 {[%clk 0:02:40]}  Nc7 {[%clk 0:02:43]} 13. Qd2 {[%clk 0:02:39]}  Kh7 {[%clk 0:02:36]} 14. Bd3 {[%clk 0:02:35]}  Rb8 {[%clk 0:02:27]} 15. a4 {[%clk 0:02:34]}  b6 {[%clk 0:02:27]} 16. Nb5 {[%clk 0:02:32]}  Nxb5 {[%clk 0:02:14]} 17. axb5 {[%clk 0:02:33]}  Qc7 {[%clk 0:02:06]} 18. Ra4 {[%clk 0:02:30]}  Bd7 {[%clk 0:02:02]} 19. Rfa1 {[%clk 0:02:22]}  a5 {[%clk 0:02:01]} 20. Ne2 {[%clk 0:02:10]}  Ng4 {[%clk 0:01:42]} 21. Nc3 {[%clk 0:02:05]}  Ne5 {[%clk 0:01:40]} 22. Bf1 {[%clk 0:02:04]}  Rf8 {[%clk 0:01:34]} 23. Re1 {[%clk 0:02:02]}  Rbe8 {[%clk 0:01:33]} 24. Bg3 {[%clk 0:02:02]}  Bc8 {[%clk 0:01:24]} 25. f4 {[%clk 0:01:55]}  Ng4 {[%clk 0:01:18]} 26. h3 {[%clk 0:01:55]}  Nf6 {[%clk 0:01:19]} 27. e5 {[%clk 0:01:46]}  Nh5 {[%clk 0:01:18]} 28. Bh2 {[%clk 0:01:46]}  dxe5 {[%clk 0:01:00]} 29. fxe5 {[%clk 0:01:46]}  Bxe5 {[%clk 0:01:00]} 30. Rxe5 {[%clk 0:01:46]}  Rxe5 {[%clk 0:01:01]} 31. d6 {[%clk 0:01:46]}  Qd7 {[%clk 0:00:25]} 32. Bxe5 {[%clk 0:01:46]}  Qf5 {[%clk 0:00:25]} 33. Re4 {[%clk 0:01:34]}  Bb7 {[%clk 0:00:25]} 34. g4 {[%clk 0:01:25]}  Qf3 {[%clk 0:00:22]} 35. Bg2 {[%clk 0:01:24]} 1-0


[Site "https://www.chess.com"]

[Event "Titled Tuesday Blitz April 4 Late 2023"]
[White "Hajiyev, Kanan"]
[Black "Kilic, Eray"]
[WhiteFideId "13404148"]
[BlackFideId "44517173"]
[WhiteElo "2103"]
[BlackElo "2328"]
[Result "1-0"]
[Round "01"]
[TimeControl "180+2"]
[Date "2023.04.04"]
[WhiteClock "0:00:31"]
[BlackClock "0:00:43"]

1. d4 {[%clk 0:02:58]}  Nf6 {[%clk 0:02:59]} 2. Nf3 {[%clk 0:02:58]}  g6 {[%clk 0:02:59]} 3. g3 {[%clk 0:02:58]}  Bg7 {[%clk 0:03:00]} 4. Bg2 {[%clk 0:02:59]}  O-O {[%clk 0:03:01]} 5. O-O {[%clk 0:02:58]}  d6 {[%clk 0:03:01]} 6. c4 {[%clk 0:02:59]}  Nbd7 {[%clk 0:03:00]} 7. b3 {[%clk 0:02:58]}  e5 {[%clk 0:03:00]} 8. Bb2 {[%clk 0:02:59]}  exd4 {[%clk 0:02:58]} 9. Nxd4 {[%clk 0:02:59]}  Re8 {[%clk 0:02:58]} 10. Nc3 {[%clk 0:02:59]}  Nc5 {[%clk 0:02:58]} 11. Qc2 {[%clk 0:02:54]}  Ne6 {[%clk 0:02:54]} 12. Nxe6 {[%clk 0:02:51]}  Rxe6 {[%clk 0:02:51]} 13. Rad1 {[%clk 0:02:50]}  a6 {[%clk 0:02:51]} 14. c5 {[%clk 0:02:42]}  Qe8 {[%clk 0:02:50]} 15. cxd6 {[%clk 0:02:40]}  cxd6 {[%clk 0:02:51]} 16. e3 {[%clk 0:02:28]}  Rb8 {[%clk 0:02:44]} 17. Nd5 {[%clk 0:02:21]}  Nxd5 {[%clk 0:02:40]} 18. Bxd5 {[%clk 0:02:21]}  Re7 {[%clk 0:02:39]} 19. Bxg7 {[%clk 0:02:20]}  Kxg7 {[%clk 0:02:40]} 20. Qc3+ {[%clk 0:02:17]}  f6 {[%clk 0:02:38]} 21. Qb4 {[%clk 0:02:09]}  Rd7 {[%clk 0:02:36]} 22. Bc6 {[%clk 0:02:04]}  bxc6 {[%clk 0:02:29]} 23. Qxb8 {[%clk 0:02:03]}  d5 {[%clk 0:02:28]} 24. Qb6 {[%clk 0:02:00]}  Rd6 {[%clk 0:02:26]} 25. e4 {[%clk 0:01:54]}  Bh3 {[%clk 0:02:04]} 26. Rfe1 {[%clk 0:01:49]}  Re6 {[%clk 0:02:04]} 27. Qxa6 {[%clk 0:00:53]}  Rxe4 {[%clk 0:01:36]} 28. Qa7+ {[%clk 0:00:51]}  Kg8 {[%clk 0:01:35]} 29. Re3 {[%clk 0:00:51]}  Qe6 {[%clk 0:01:32]} 30. Rde1 {[%clk 0:00:46]}  f5 {[%clk 0:01:23]} 31. f3 {[%clk 0:00:44]}  f4 {[%clk 0:01:17]} 32. Rxe4 {[%clk 0:00:41]}  dxe4 {[%clk 0:01:16]} 33. Rxe4 {[%clk 0:00:42]}  Qc8 {[%clk 0:00:57]} 34. Re7 {[%clk 0:00:39]}  Qf8 {[%clk 0:00:54]} 35. Rxh7 {[%clk 0:00:38]}  Be6 {[%clk 0:00:49]} 36. Rh4 {[%clk 0:00:32]}  Bf7 {[%clk 0:00:43]} 37. Qd4 {[%clk 0:00:31]} 1-0


[Site "https://www.chess.com"]

[Event "Titled Tuesday Blitz April 4 Late 2023"]
[White "Yanchenko, Roman"]
[Black "KorolDimitriy75"]
[WhiteFideId "4137329"]
[WhiteElo "2491"]
[BlackElo "2414"]
[Result "1-0"]
[Round "01"]
[TimeControl "180+2"]
[Date "2023.04.04"]
[WhiteClock "0:02:21"]
[BlackClock "0:00:15"]

1. d4 {[%clk 0:03:00]}  Nf6 {[%clk 0:02:58]} 2. c4 {[%clk 0:03:00]}  c5 {[%clk 0:02:58]} 3. Nf3 {[%clk 0:03:00]}  cxd4 {[%clk 0:02:58]} 4. Nxd4 {[%clk 0:03:01]}  g6 {[%clk 0:02:58]} 5. Nc3 {[%clk 0:03:01]}  Bg7 {[%clk 0:02:59]} 6. e3 {[%clk 0:03:01]}  O-O {[%clk 0:02:59]} 7. Be2 {[%clk 0:03:02]}  Nc6 {[%clk 0:02:59]} 8. O-O {[%clk 0:03:01]}  d6 {[%clk 0:02:59]} 9. b3 {[%clk 0:03:01]}  Bd7 {[%clk 0:02:59]} 10. Bb2 {[%clk 0:03:01]}  Qa5 {[%clk 0:02:58]} 11. Rc1 {[%clk 0:03:00]}  Rfc8 {[%clk 0:02:58]} 12. Bf3 {[%clk 0:03:00]}  a6 {[%clk 0:02:53]} 13. h3 {[%clk 0:02:54]}  Rab8 {[%clk 0:02:45]} 14. Qd2 {[%clk 0:02:47]}  Ne5 {[%clk 0:02:24]} 15. Be2 {[%clk 0:02:40]}  b5 {[%clk 0:02:18]} 16. cxb5 {[%clk 0:02:38]}  axb5 {[%clk 0:02:18]} 17. a3 {[%clk 0:02:35]}  b4 {[%clk 0:01:25]} 18. Na2 {[%clk 0:02:34]}  Ne4 {[%clk 0:01:24]} 19. Rxc8+ {[%clk 0:02:34]}  Bxc8 {[%clk 0:01:18]} 20. Qe1 {[%clk 0:02:34]}  Qb6 {[%clk 0:01:08]} 21. Nxb4 {[%clk 0:02:31]}  e6 {[%clk 0:00:43]} 22. Qc1 {[%clk 0:02:29]}  Nc5 {[%clk 0:00:32]} 23. Qc2 {[%clk 0:02:25]}  Bd7 {[%clk 0:00:29]} 24. Rc1 {[%clk 0:02:24]}  Rc8 {[%clk 0:00:27]} 25. Qd1 {[%clk 0:02:24]}  Kf8 {[%clk 0:00:17]} 26. f4 {[%clk 0:02:21]}  Nc6 {[%clk 0:00:15]} 27. Ndxc6 {[%clk 0:02:22]}  Bxc6 {[%clk 0:00:15]} 28. Qxd6+ {[%clk 0:02:21]} 1-0


[Site "https://www.chess.com"]

[Event "Titled Tuesday Blitz April 4 Late 2023"]
[White "Jimenez Jimenez, Leandro"]
[Black "Horvath, Dominik"]
[WhiteFideId "6415253"]
[BlackFideId "1642561"]
[WhiteElo "2263"]
[BlackElo "2407"]
[Result "1-0"]
[Round "01"]
[TimeControl "180+2"]
[Date "2023.04.04"]
[WhiteClock "0:00:31"]
[BlackClock "0:00:46"]

1. d4 {[%clk 0:02:58]}  Nf6 {[%clk 0:02:55]} 2. c4 {[%clk 0:02:57]}  e6 {[%clk 0:02:51]} 3. Nf3 {[%clk 0:02:55]}  d5 {[%clk 0:02:49]} 4. g3 {[%clk 0:02:56]}  Be7 {[%clk 0:02:46]} 5. Bg2 {[%clk 0:02:56]}  Ne4 {[%clk 0:02:46]} 6. O-O {[%clk 0:02:54]}  f5 {[%clk 0:02:47]} 7. b3 {[%clk 0:02:45]}  Nc6 {[%clk 0:02:46]} 8. Ba3 {[%clk 0:02:44]}  Bf6 {[%clk 0:02:45]} 9. e3 {[%clk 0:02:42]}  h5 {[%clk 0:02:44]} 10. h4 {[%clk 0:02:39]}  g5 {[%clk 0:02:44]} 11. hxg5 {[%clk 0:02:36]}  Bxg5 {[%clk 0:02:44]} 12. Nbd2 {[%clk 0:02:21]}  h4 {[%clk 0:02:43]} 13. Nxe4 {[%clk 0:02:17]}  dxe4 {[%clk 0:02:43]} 14. Nxg5 {[%clk 0:01:42]}  Qxg5 {[%clk 0:02:42]} 15. d5 {[%clk 0:01:37]}  h3 {[%clk 0:02:20]} 16. dxc6 {[%clk 0:01:29]}  hxg2 {[%clk 0:02:14]} 17. Kxg2 {[%clk 0:01:29]}  bxc6 {[%clk 0:01:29]} 18. Rh1 {[%clk 0:01:09]}  Rxh1 {[%clk 0:01:29]} 19. Qxh1 {[%clk 0:01:08]}  Bb7 {[%clk 0:01:28]} 20. Rd1 {[%clk 0:00:57]}  c5 {[%clk 0:00:47]} 21. Qh8+ {[%clk 0:00:40]}  Kf7 {[%clk 0:00:46]} 22. Rd7+ {[%clk 0:00:31]} 1-0


[Site "https://www.chess.com"]

[Event "Titled Tuesday Blitz April 4 Late 2023"]
[White "Bryakin, Mikhail"]
[Black "ArtemDyachuk"]
[WhiteFideId "4165314"]
[WhiteElo "2447"]
[BlackElo "2412"]
[Result "1-0"]
[Round "01"]
[TimeControl "180+2"]
[Date "2023.04.04"]
[WhiteClock "0:01:32"]
[BlackClock "0:00:01"]

1. e4 {[%clk 0:02:50]}  c5 {[%clk 0:02:58]} 2. Nf3 {[%clk 0:02:46]}  d6 {[%clk 0:02:58]} 3. Bb5+ {[%clk 0:02:44]}  Nd7 {[%clk 0:02:58]} 4. c3 {[%clk 0:02:43]}  Nf6 {[%clk 0:02:57]} 5. Qe2 {[%clk 0:02:41]}  g6 {[%clk 0:02:55]} 6. O-O {[%clk 0:02:40]}  Bg7 {[%clk 0:02:54]} 7. d4 {[%clk 0:02:41]}  cxd4 {[%clk 0:02:54]} 8. cxd4 {[%clk 0:02:41]}  O-O {[%clk 0:02:55]} 9. Nc3 {[%clk 0:02:42]}  a6 {[%clk 0:02:55]} 10. Bd3 {[%clk 0:02:41]}  e5 {[%clk 0:02:47]} 11. d5 {[%clk 0:02:36]}  b5 {[%clk 0:02:46]} 12. b4 {[%clk 0:02:29]}  Bb7 {[%clk 0:02:44]} 13. a4 {[%clk 0:02:29]}  bxa4 {[%clk 0:02:36]} 14. Rxa4 {[%clk 0:02:30]}  Qc8 {[%clk 0:02:27]} 15. Bd2 {[%clk 0:02:25]}  Nh5 {[%clk 0:02:25]} 16. g3 {[%clk 0:02:22]}  f5 {[%clk 0:02:20]} 17. Rc1 {[%clk 0:02:22]}  fxe4 {[%clk 0:02:08]} 18. Nxe4 {[%clk 0:02:22]}  Qe8 {[%clk 0:01:59]} 19. Nxd6 {[%clk 0:02:20]}  Qb8 {[%clk 0:01:53]} 20. Nxb7 {[%clk 0:02:20]}  Qxb7 {[%clk 0:01:54]} 21. Bxa6 {[%clk 0:02:20]}  Qb6 {[%clk 0:01:47]} 22. Rc6 {[%clk 0:02:11]}  Qd8 {[%clk 0:01:43]} 23. Bg5 {[%clk 0:02:08]}  Qe8 {[%clk 0:01:39]} 24. Re6 {[%clk 0:02:07]}  Qf7 {[%clk 0:01:26]} 25. Kg2 {[%clk 0:02:06]}  Nhf6 {[%clk 0:00:59]} 26. Ra5 {[%clk 0:01:42]}  Rae8 {[%clk 0:00:31]} 27. Bc4 {[%clk 0:01:41]}  h6 {[%clk 0:00:21]} 28. Rxe8 {[%clk 0:01:40]}  Qxe8 {[%clk 0:00:20]} 29. d6+ {[%clk 0:01:41]}  Kh7 {[%clk 0:00:19]} 30. Be3 {[%clk 0:01:39]}  Ng4 {[%clk 0:00:18]} 31. Ra7 {[%clk 0:01:38]}  e4 {[%clk 0:00:14]} 32. Nd4 {[%clk 0:01:38]}  Nde5 {[%clk 0:00:12]} 33. Ne6 {[%clk 0:01:38]}  Nxe3+ {[%clk 0:00:05]} 34. Qxe3 {[%clk 0:01:38]}  Rg8 {[%clk 0:00:02]} 35. Nc7 {[%clk 0:01:32]}  Qc6 {[%clk 0:00:02]} 36. Bxg8+ {[%clk 0:01:32]}  Kxg8 {[%clk 0:00:01]} 37. Ra6 {[%clk 0:01:32]} 1-0


[Site "https://www.chess.com"]

[Event "Titled Tuesday Blitz April 4 Late 2023"]
[White "Harriott, Tyrell"]
[Black "Riff, Vincent"]
[WhiteFideId "2086484"]
[BlackFideId "617776"]
[WhiteElo "2107"]
[BlackElo "2369"]
[Result "0-1"]
[Round "01"]
[TimeControl "180+2"]
[Date "2023.04.04"]
[WhiteClock "0:00:14"]
[BlackClock "0:00:34"]

1. d4 {[%clk 0:02:59]}  d5 {[%clk 0:02:57]} 2. e3 {[%clk 0:02:58]}  Nf6 {[%clk 0:02:56]} 3. Bd3 {[%clk 0:02:58]}  Bg4 {[%clk 0:02:53]} 4. Ne2 {[%clk 0:02:58]}  c5 {[%clk 0:02:51]} 5. c3 {[%clk 0:02:58]}  Nc6 {[%clk 0:02:51]} 6. f4 {[%clk 0:02:59]}  e6 {[%clk 0:02:47]} 7. O-O {[%clk 0:02:59]}  Bd6 {[%clk 0:02:37]} 8. Nd2 {[%clk 0:03:00]}  Qc7 {[%clk 0:02:32]} 9. Nf3 {[%clk 0:02:59]}  Ne4 {[%clk 0:02:28]} 10. Bxe4 {[%clk 0:02:59]}  dxe4 {[%clk 0:02:28]} 11. Ng5 {[%clk 0:03:00]}  Bf5 {[%clk 0:02:20]} 12. Ng3 {[%clk 0:02:59]}  h6 {[%clk 0:02:16]} 13. N5xe4 {[%clk 0:02:58]}  O-O-O {[%clk 0:02:12]} 14. Qf3 {[%clk 0:02:47]}  Bh7 {[%clk 0:02:01]} 15. f5 {[%clk 0:02:40]}  e5 {[%clk 0:01:51]} 16. d5 {[%clk 0:02:33]}  Ne7 {[%clk 0:01:49]} 17. c4 {[%clk 0:02:23]}  Rhe8 {[%clk 0:01:42]} 18. Qh5 {[%clk 0:02:18]}  Ng8 {[%clk 0:01:35]} 19. Qg4 {[%clk 0:02:16]}  f6 {[%clk 0:01:32]} 20. Bd2 {[%clk 0:02:12]}  Bf8 {[%clk 0:01:23]} 21. a3 {[%clk 0:02:02]}  Kb8 {[%clk 0:01:14]} 22. Rfc1 {[%clk 0:02:00]}  Ne7 {[%clk 0:01:10]} 23. d6 {[%clk 0:01:55]}  Rxd6 {[%clk 0:01:10]} 24. Nxd6 {[%clk 0:01:55]}  Qxd6 {[%clk 0:01:10]} 25. Rd1 {[%clk 0:01:52]}  Qc6 {[%clk 0:01:07]} 26. e4 {[%clk 0:01:49]}  Bg8 {[%clk 0:01:04]} 27. Qe2 {[%clk 0:01:47]}  Nc8 {[%clk 0:01:04]} 28. Rdc1 {[%clk 0:01:44]}  Rd8 {[%clk 0:01:02]} 29. b4 {[%clk 0:01:41]}  Nb6 {[%clk 0:01:00]} 30. b5 {[%clk 0:01:39]}  Qd6 {[%clk 0:00:57]} 31. Ba5 {[%clk 0:01:38]}  Qd4+ {[%clk 0:00:51]} 32. Kh1 {[%clk 0:01:31]}  Bxc4 {[%clk 0:00:51]} 33. Qe1 {[%clk 0:01:28]}  Bxb5 {[%clk 0:00:47]} 34. Rd1 {[%clk 0:01:26]}  Bd3 {[%clk 0:00:48]} 35. Bxb6 {[%clk 0:01:13]}  axb6 {[%clk 0:00:47]} 36. Qd2 {[%clk 0:01:06]}  c4 {[%clk 0:00:48]} 37. Qe1 {[%clk 0:00:57]}  Bc5 {[%clk 0:00:47]} 38. h3 {[%clk 0:00:55]}  Rc8 {[%clk 0:00:44]} 39. a4 {[%clk 0:00:52]}  Qb2 {[%clk 0:00:44]} 40. Rd2 {[%clk 0:00:45]}  Qb4 {[%clk 0:00:42]} 41. Rad1 {[%clk 0:00:39]}  Qa5 {[%clk 0:00:42]} 42. Ra2 {[%clk 0:00:25]}  Qxe1+ {[%clk 0:00:38]} 43. Rxe1 {[%clk 0:00:26]}  c3 {[%clk 0:00:36]} 44. Rc1 {[%clk 0:00:23]}  Be3 {[%clk 0:00:32]} 45. Rd1 {[%clk 0:00:19]}  c2 {[%clk 0:00:32]} 46. Rxc2 {[%clk 0:00:15]}  Bxc2 {[%clk 0:00:32]} 47. Ra1 {[%clk 0:00:14]}  Bf4 {[%clk 0:00:32]} 48. Ne2 {[%clk 0:00:14]}  Bxe4 {[%clk 0:00:32]} 49. Nxf4 {[%clk 0:00:14]}  exf4 {[%clk 0:00:33]} 50. a5 {[%clk 0:00:14]}  bxa5 {[%clk 0:00:33]} 51. Ra2 {[%clk 0:00:13]}  Rc2 {[%clk 0:00:32]} 52. Rxc2 {[%clk 0:00:12]}  Bxc2 {[%clk 0:00:32]} 53. Kg1 {[%clk 0:00:13]}  a4 {[%clk 0:00:33]} 54. Kf2 {[%clk 0:00:14]}  a3 {[%clk 0:00:33]} 55. Kf3 {[%clk 0:00:15]}  a2 {[%clk 0:00:34]} 56. Kxf4 {[%clk 0:00:16]}  a1=Q {[%clk 0:00:34]} 57. Kg4 {[%clk 0:00:17]}  Qd4+ {[%clk 0:00:34]} 58. Kh5 {[%clk 0:00:16]}  Qf4 {[%clk 0:00:32]} 59. Kg6 {[%clk 0:00:15]}  Qxf5+ {[%clk 0:00:32]} 60. Kf7 {[%clk 0:00:16]}  Qd7+ {[%clk 0:00:33]} 61. Kg8 {[%clk 0:00:16]}  g5 {[%clk 0:00:33]} 62. Kf8 {[%clk 0:00:15]}  Bg6 {[%clk 0:00:34]} 63. Kg8 {[%clk 0:00:14]}  Qf7+ {[%clk 0:00:34]} 0-1


[Site "https://www.chess.com"]

[Event "Titled Tuesday Blitz April 4 Late 2023"]
[White "Kozelov, Roman"]
[Black "koteRV1610"]
[WhiteFideId "14133377"]
[WhiteElo "2149"]
[BlackElo "2721"]
[Result "0-1"]
[Round "01"]
[TimeControl "180+2"]
[Date "2023.04.04"]
[WhiteClock "0:00:14"]
[BlackClock "0:00:19"]

1. e4 {[%clk 0:02:55]}  e6 {[%clk 0:02:58]} 2. d4 {[%clk 0:02:55]}  d5 {[%clk 0:02:58]} 3. Nc3 {[%clk 0:02:56]}  Bb4 {[%clk 0:02:55]} 4. e5 {[%clk 0:02:55]}  b6 {[%clk 0:02:48]} 5. a3 {[%clk 0:02:56]}  Bf8 {[%clk 0:02:47]} 6. f4 {[%clk 0:02:53]}  Ba6 {[%clk 0:02:39]} 7. Bxa6 {[%clk 0:02:52]}  Nxa6 {[%clk 0:02:40]} 8. Nf3 {[%clk 0:02:52]}  c5 {[%clk 0:02:38]} 9. Be3 {[%clk 0:02:50]}  Nh6 {[%clk 0:02:32]} 10. O-O {[%clk 0:02:49]}  Nf5 {[%clk 0:02:32]} 11. Bf2 {[%clk 0:02:49]}  h5 {[%clk 0:02:27]} 12. g3 {[%clk 0:02:37]}  Be7 {[%clk 0:02:25]} 13. h3 {[%clk 0:02:37]}  g6 {[%clk 0:02:16]} 14. Kg2 {[%clk 0:02:35]}  Rc8 {[%clk 0:02:09]} 15. Rh1 {[%clk 0:02:28]}  cxd4 {[%clk 0:01:47]} 16. Nb5 {[%clk 0:02:26]}  Nc5 {[%clk 0:01:44]} 17. Nbxd4 {[%clk 0:02:26]}  Ne4 {[%clk 0:01:42]} 18. Qe2 {[%clk 0:02:12]}  Qc7 {[%clk 0:01:26]} 19. c3 {[%clk 0:02:12]}  Qc4 {[%clk 0:01:22]} 20. Rae1 {[%clk 0:01:47]}  Qxe2 {[%clk 0:01:13]} 21. Rxe2 {[%clk 0:01:47]}  Kd7 {[%clk 0:01:14]} 22. Be1 {[%clk 0:01:26]}  h4 {[%clk 0:01:11]} 23. g4 {[%clk 0:01:24]}  Nfg3 {[%clk 0:01:11]} 24. Bxg3 {[%clk 0:01:23]}  Nxg3 {[%clk 0:01:12]} 25. Ree1 {[%clk 0:01:22]}  Nxh1 {[%clk 0:01:06]} 26. Rxh1 {[%clk 0:01:23]}  a6 {[%clk 0:01:00]} 27. Rd1 {[%clk 0:01:22]}  b5 {[%clk 0:00:59]} 28. f5 {[%clk 0:01:20]}  gxf5 {[%clk 0:00:58]} 29. gxf5 {[%clk 0:01:20]}  Rhg8+ {[%clk 0:00:57]} 30. Kh2 {[%clk 0:01:18]}  Rg3 {[%clk 0:00:57]} 31. f6 {[%clk 0:01:18]}  Bc5 {[%clk 0:00:52]} 32. Nxh4 {[%clk 0:01:14]}  Re3 {[%clk 0:00:51]} 33. Nb3 {[%clk 0:00:46]}  Re2+ {[%clk 0:00:44]} 34. Kg3 {[%clk 0:00:46]}  Rxb2 {[%clk 0:00:43]} 35. Nd2 {[%clk 0:00:35]}  Bxa3 {[%clk 0:00:41]} 36. Ndf3 {[%clk 0:00:31]}  Rxc3 {[%clk 0:00:40]} 37. Kg4 {[%clk 0:00:32]}  Rb4+ {[%clk 0:00:34]} 38. Kh5 {[%clk 0:00:32]}  Rf4 {[%clk 0:00:31]} 39. Ng5 {[%clk 0:00:25]}  Ke8 {[%clk 0:00:26]} 40. Rg1 {[%clk 0:00:23]}  Bf8 {[%clk 0:00:22]} 41. Nh7 {[%clk 0:00:20]}  Rxh3 {[%clk 0:00:20]} 42. Rg4 {[%clk 0:00:15]}  Rxg4 {[%clk 0:00:20]} 43. Kxg4 {[%clk 0:00:15]}  Rh1 {[%clk 0:00:19]} 44. Ng5 {[%clk 0:00:14]}  b4 {[%clk 0:00:19]} 0-1


[Site "https://www.chess.com"]

[Event "Titled Tuesday Blitz April 4 Late 2023"]
[White "Bolourchifard, Farzad"]
[Black "Melikhov, Evgeny V."]
[WhiteFideId "12510084"]
[BlackFideId "4122046"]
[WhiteElo "2317"]
[BlackElo "2158"]
[Result "1-0"]
[Round "01"]
[TimeControl "180+2"]
[Date "2023.04.04"]
[WhiteClock "0:00:21"]
[BlackClock "0:00:01"]

1. e4 {[%clk 0:02:58]}  e5 {[%clk 0:02:59]} 2. Nf3 {[%clk 0:02:57]}  Nc6 {[%clk 0:03:00]} 3. Bc4 {[%clk 0:02:58]}  Nf6 {[%clk 0:02:59]} 4. d3 {[%clk 0:02:58]}  Be7 {[%clk 0:02:58]} 5. O-O {[%clk 0:02:58]}  O-O {[%clk 0:02:55]} 6. Re1 {[%clk 0:02:58]}  d6 {[%clk 0:02:54]} 7. c3 {[%clk 0:02:55]}  Na5 {[%clk 0:02:52]} 8. Bb5 {[%clk 0:02:55]}  a6 {[%clk 0:02:52]} 9. Ba4 {[%clk 0:02:55]}  b5 {[%clk 0:02:52]} 10. Bc2 {[%clk 0:02:56]}  c5 {[%clk 0:02:52]} 11. Nbd2 {[%clk 0:02:56]}  Bb7 {[%clk 0:02:50]} 12. Nf1 {[%clk 0:02:56]}  Re8 {[%clk 0:02:49]} 13. Ng3 {[%clk 0:02:56]}  Bf8 {[%clk 0:02:49]} 14. Nh4 {[%clk 0:02:38]}  d5 {[%clk 0:02:12]} 15. Qe2 {[%clk 0:02:12]}  c4 {[%clk 0:02:03]} 16. dxc4 {[%clk 0:01:57]}  Nxc4 {[%clk 0:01:59]} 17. Rd1 {[%clk 0:01:46]}  Nxe4 {[%clk 0:01:21]} 18. Nxe4 {[%clk 0:01:41]}  Qxh4 {[%clk 0:01:17]} 19. Bg5 {[%clk 0:01:41]}  Qxe4 {[%clk 0:01:01]} 20. Bxe4 {[%clk 0:01:41]}  dxe4 {[%clk 0:01:01]} 21. a4 {[%clk 0:01:33]}  h6 {[%clk 0:00:46]} 22. axb5 {[%clk 0:01:25]}  axb5 {[%clk 0:00:45]} 23. Be3 {[%clk 0:01:25]}  f5 {[%clk 0:00:35]} 24. b3 {[%clk 0:01:22]}  Nxe3 {[%clk 0:00:30]} 25. Qxe3 {[%clk 0:01:17]}  Rxa1 {[%clk 0:00:25]} 26. Rxa1 {[%clk 0:01:17]}  Bd5 {[%clk 0:00:16]} 27. Qb6 {[%clk 0:00:41]}  Bxb3 {[%clk 0:00:12]} 28. Qxb5 {[%clk 0:00:41]}  Bf7 {[%clk 0:00:11]} 29. c4 {[%clk 0:00:35]}  f4 {[%clk 0:00:09]} 30. c5 {[%clk 0:00:31]}  e3 {[%clk 0:00:09]} 31. fxe3 {[%clk 0:00:25]}  fxe3 {[%clk 0:00:09]} 32. Rc1 {[%clk 0:00:22]}  Rc8 {[%clk 0:00:06]} 33. c6 {[%clk 0:00:22]}  e2 {[%clk 0:00:05]} 34. Qxe2 {[%clk 0:00:20]}  Bd5 {[%clk 0:00:04]} 35. c7 {[%clk 0:00:20]}  e4 {[%clk 0:00:03]} 36. Qa6 {[%clk 0:00:20]}  Re8 {[%clk 0:00:01]} 37. c8=Q {[%clk 0:00:20]}  Rxc8 {[%clk 0:00:01]} 38. Qxc8 {[%clk 0:00:21]} 1-0


[Site "https://www.chess.com"]

[Event "Titled Tuesday Blitz April 4 Late 2023"]
[White "Aydincelebi, Kagan"]
[Black "Celestino, Rafael Teixeira"]
[WhiteFideId "6361102"]
[BlackFideId "2108925"]
[WhiteElo "2180"]
[BlackElo "2395"]
[Result "1-0"]
[Round "01"]
[TimeControl "180+2"]
[Date "2023.04.04"]
[WhiteClock "0:01:28"]
[BlackClock "0:00:04"]

1. e4 {[%clk 0:03:00]}  e5 {[%clk 0:02:59]} 2. Nf3 {[%clk 0:03:00]}  Nc6 {[%clk 0:03:00]} 3. Bb5 {[%clk 0:03:01]}  Nf6 {[%clk 0:02:59]} 4. d3 {[%clk 0:03:01]}  Bb4+ {[%clk 0:02:59]} 5. c3 {[%clk 0:02:59]}  Ba5 {[%clk 0:02:59]} 6. Bxc6 {[%clk 0:02:50]}  dxc6 {[%clk 0:02:57]} 7. Nxe5 {[%clk 0:02:50]}  O-O {[%clk 0:02:55]} 8. O-O {[%clk 0:02:48]}  Re8 {[%clk 0:02:50]} 9. Nc4 {[%clk 0:02:48]}  Bb6 {[%clk 0:02:49]} 10. Bg5 {[%clk 0:02:45]}  h6 {[%clk 0:02:49]} 11. Bh4 {[%clk 0:02:44]}  g5 {[%clk 0:02:48]} 12. Bg3 {[%clk 0:02:43]}  Bg4 {[%clk 0:02:48]} 13. Qc2 {[%clk 0:02:40]}  Nh5 {[%clk 0:02:49]} 14. Nxb6 {[%clk 0:02:39]}  axb6 {[%clk 0:02:47]} 15. Nd2 {[%clk 0:02:32]}  Qf6 {[%clk 0:02:41]} 16. Bxc7 {[%clk 0:02:21]}  Nf4 {[%clk 0:02:31]} 17. Bxf4 {[%clk 0:02:19]}  Qxf4 {[%clk 0:02:31]} 18. Nc4 {[%clk 0:02:16]}  b5 {[%clk 0:02:28]} 19. Ne3 {[%clk 0:02:15]}  Be6 {[%clk 0:02:29]} 20. g3 {[%clk 0:02:08]}  Qf6 {[%clk 0:02:10]} 21. f4 {[%clk 0:02:08]}  gxf4 {[%clk 0:01:45]} 22. Rxf4 {[%clk 0:02:09]}  Qe5 {[%clk 0:01:43]} 23. d4 {[%clk 0:02:03]}  Qg5 {[%clk 0:01:33]} 24. a3 {[%clk 0:02:03]}  Kh7 {[%clk 0:01:32]} 25. Raf1 {[%clk 0:02:02]}  Rg8 {[%clk 0:01:31]} 26. Nf5 {[%clk 0:01:55]}  Rae8 {[%clk 0:01:10]} 27. Nd6 {[%clk 0:01:53]}  Re7 {[%clk 0:01:10]} 28. Nxf7 {[%clk 0:01:51]}  Qh5 {[%clk 0:01:02]} 29. e5+ {[%clk 0:01:39]}  Kg7 {[%clk 0:00:57]} 30. Nd6 {[%clk 0:01:39]}  Bh3 {[%clk 0:00:54]} 31. Nf5+ {[%clk 0:01:36]}  Bxf5 {[%clk 0:00:41]} 32. Qxf5 {[%clk 0:01:37]}  Qxf5 {[%clk 0:00:30]} 33. Rxf5 {[%clk 0:01:38]}  Kg6 {[%clk 0:00:24]} 34. Rf6+ {[%clk 0:01:37]}  Kg5 {[%clk 0:00:25]} 35. Kg2 {[%clk 0:01:33]}  Kh5 {[%clk 0:00:14]} 36. R1f4 {[%clk 0:01:30]}  Reg7 {[%clk 0:00:11]} 37. Rh4+ {[%clk 0:01:30]}  Kg5 {[%clk 0:00:11]} 38. Rhxh6 {[%clk 0:01:29]}  Rf7 {[%clk 0:00:03]} 39. h4+ {[%clk 0:01:28]}  Kg4 {[%clk 0:00:04]} 40. Rxf7 {[%clk 0:01:27]}  Re8 {[%clk 0:00:04]} 41. Rf4# {[%clk 0:01:28]} 1-0


[Site "https://www.chess.com"]